{"text_format":"3","workbook":"xlsx","n_sheets":13,"sheets":["ינואר","פברואר","מרץ","אפריל","מאי","יוני","יולי","אוגוסט","ספטמבר","אוקטובר","נובמבר","סיכום מתחילת השנה עד היום","דצמבר"],"not_rendered":{"charts":1,"defined_names":26},"read":"whole","date_system":"1900"}

{"sheet":"ינואר","index":0,"n_rows":9,"n_cols":14,"rows_kept":9,"merged":[[3,0,4,0],[6,0,7,0]]}
["ינואר"]
["מכירות באינטרנט",null,"מזהה מכירה","תיאור פריט","מחיר רכישה","מחיר מכירה","עמלת אינטרנט","עמלות PayPal","עמלות כרטיס אשראי","עלויות משלוח","עלויות משלוח2","רווח/הפסד על מכירה","רווח/הפסד על משלוח","סה\"כ רווח/הפסד"]
["שנה",null,"TS001","פריט 1",{"v":5,"d":"₪ 5.00"},{"v":4,"d":"₪ 4.00"},{"v":2,"d":"₪ 2.00"},{"v":1.5,"d":"₪ 1.50"},{"v":0,"d":"₪ 0.00"},{"v":4,"d":"₪ 4.00"},{"v":2,"d":"₪ 2.00"},{"$f":"IFERROR(JanuarySales[מחיר מכירה]-(JanuarySales[מחיר רכישה]+JanuarySales[עמלת אינטרנט]+JanuarySales[עמלות PayPal]+JanuarySales[עמלות כרטיס אשראי]),\"\")","v":{"v":-4.5,"d":"(₪ 4.50)"}},{"$f":"JanuarySales[עלויות משלוח]-JanuarySales[עלויות משלוח2]","v":{"v":2,"d":"₪ 2.00"}},{"$f":"JanuarySales[רווח/הפסד על מכירה]+JanuarySales[רווח/הפסד על משלוח]","v":{"v":-2.5,"d":"(₪ 2.50)"}}]
[2012,null,"TP004","פריט 2",{"v":2,"d":"₪ 2.00"},{"v":30,"d":"₪ 30.00"},{"v":0.5,"d":"₪ 0.50"},{"v":0.5,"d":"₪ 0.50"},null,{"v":4,"d":"₪ 4.00"},{"v":5.5,"d":"₪ 5.50"},{"$f":"IFERROR(JanuarySales[מחיר מכירה]-(JanuarySales[מחיר רכישה]+JanuarySales[עמלת אינטרנט]+JanuarySales[עמלות PayPal]+JanuarySales[עמלות כרטיס אשראי]),\"\")","v":{"v":27,"d":"₪ 27.00"}},{"$f":"JanuarySales[עלויות משלוח]-JanuarySales[עלויות משלוח2]","v":{"v":-1.5,"d":"(₪ 1.50)"}},{"$f":"JanuarySales[רווח/הפסד על מכירה]+JanuarySales[רווח/הפסד על משלוח]","v":{"v":25.5,"d":"₪ 25.50"}}]
[null,null,"RS99","פריט 3",{"v":17,"d":"₪ 17.00"},{"v":23,"d":"₪ 23.00"},{"v":2,"d":"₪ 2.00"},null,{"v":2,"d":"₪ 2.00"},{"v":3,"d":"₪ 3.00"},{"v":2,"d":"₪ 2.00"},{"$f":"IFERROR(JanuarySales[מחיר מכירה]-(JanuarySales[מחיר רכישה]+JanuarySales[עמלת אינטרנט]+JanuarySales[עמלות PayPal]+JanuarySales[עמלות כרטיס אשראי]),\"\")","v":{"v":2,"d":"₪ 2.00"}},{"$f":"JanuarySales[עלויות משלוח]-JanuarySales[עלויות משלוח2]","v":{"v":1,"d":"₪ 1.00"}},{"$f":"JanuarySales[רווח/הפסד על מכירה]+JanuarySales[רווח/הפסד על משלוח]","v":{"v":3,"d":"₪ 3.00"}}]
["סה\"כ רווח/הפסד",null,"ST001","פריט 4",{"v":120,"d":"₪ 120.00"},{"v":180,"d":"₪ 180.00"},{"v":2,"d":"₪ 2.00"},{"v":1.5,"d":"₪ 1.50"},null,{"v":3,"d":"₪ 3.00"},{"v":2,"d":"₪ 2.00"},{"$f":"IFERROR(JanuarySales[מחיר מכירה]-(JanuarySales[מחיר רכישה]+JanuarySales[עמלת אינטרנט]+JanuarySales[עמלות PayPal]+JanuarySales[עמלות כרטיס אשראי]),\"\")","v":{"v":56.5,"d":"₪ 56.50"}},{"$f":"JanuarySales[עלויות משלוח]-JanuarySales[עלויות משלוח2]","v":{"v":1,"d":"₪ 1.00"}},{"$f":"JanuarySales[רווח/הפסד על מכירה]+JanuarySales[רווח/הפסד על משלוח]","v":{"v":57.5,"d":"₪ 57.50"}}]
[{"$f":"JanuarySales[[#Totals],[סה\"כ רווח/הפסד]]","v":{"v":89,"d":"₪89.00"}},null,"ST001","פריט 5",{"v":10,"d":"₪ 10.00"},{"v":12,"d":"₪ 12.00"},{"v":2,"d":"₪ 2.00"},{"v":1.5,"d":"₪ 1.50"},null,{"v":14,"d":"₪ 14.00"},{"v":7,"d":"₪ 7.00"},{"$f":"IFERROR(JanuarySales[מחיר מכירה]-(JanuarySales[מחיר רכישה]+JanuarySales[עמלת אינטרנט]+JanuarySales[עמלות PayPal]+JanuarySales[עמלות כרטיס אשראי]),\"\")","v":{"v":-1.5,"d":"(₪ 1.50)"}},{"$f":"JanuarySales[עלויות משלוח]-JanuarySales[עלויות משלוח2]","v":{"v":7,"d":"₪ 7.00"}},{"$f":"JanuarySales[רווח/הפסד על מכירה]+JanuarySales[רווח/הפסד על משלוח]","v":{"v":5.5,"d":"₪ 5.50"}}]
[null,null," סה\"כ",{"$f":"\" נמכרו: \"&SUBTOTAL(103,JanuarySales[תיאור פריט])","v":" נמכרו: 5"},{"$f":"SUBTOTAL(109,JanuarySales[מחיר רכישה])","v":{"v":154,"d":"₪ 154.00"}},{"$f":"SUBTOTAL(109,JanuarySales[מחיר מכירה])","v":{"v":249,"d":"₪ 249.00"}},{"$f":"SUBTOTAL(109,JanuarySales[עמלת אינטרנט])","v":{"v":8.5,"d":"₪ 8.50"}},{"$f":"SUBTOTAL(109,JanuarySales[עמלות PayPal])","v":{"v":5,"d":"₪ 5.00"}},{"$f":"SUBTOTAL(109,JanuarySales[עמלות כרטיס אשראי])","v":{"v":2,"d":"₪ 2.00"}},{"$f":"SUBTOTAL(109,JanuarySales[עלויות משלוח])","v":{"v":28,"d":"₪ 28.00"}},{"$f":"SUBTOTAL(109,JanuarySales[עלויות משלוח2])","v":{"v":18.5,"d":"₪ 18.50"}},{"$f":"SUBTOTAL(109,JanuarySales[רווח/הפסד על מכירה])","v":{"v":79.5,"d":"₪ 79.50"}},{"$f":"SUBTOTAL(109,JanuarySales[רווח/הפסד על משלוח])","v":{"v":9.5,"d":"₪ 9.50"}},{"$f":"SUBTOTAL(109,JanuarySales[סה\"כ רווח/הפסד])","v":{"v":89,"d":"₪ 89.00"}}]
["מגמת רווח/הפסד"]

{"sheet":"פברואר","index":1,"n_rows":9,"n_cols":14,"rows_kept":9,"merged":[[3,0,4,0],[6,0,7,0]]}
["פברואר"]
["מכירות באינטרנט",null,"מזהה מכירה","תיאור פריט","מחיר רכישה","מחיר מכירה","עמלת אינטרנט","עמלות PayPal","עמלות כרטיס אשראי","עלויות משלוח","עלויות משלוח2","רווח/הפסד על מכירה","רווח/הפסד על משלוח","סה\"כ רווח/הפסד"]
["שנה",null,"TS020","פריט 1",{"v":10,"d":"₪ 10.00"},{"v":175,"d":"₪ 175.00"},{"v":3,"d":"₪ 3.00"},{"v":1.5,"d":"₪ 1.50"},{"v":0,"d":"₪ 0.00"},{"v":7,"d":"₪ 7.00"},{"v":5,"d":"₪ 5.00"},{"$f":"IFERROR(FebruarySales[מחיר מכירה]-(FebruarySales[מחיר רכישה]+FebruarySales[עמלת אינטרנט]+FebruarySales[עמלות PayPal]+FebruarySales[עמלות כרטיס אשראי]),\"\")","v":{"v":160.5,"d":"₪ 160.50"}},{"$f":"FebruarySales[עלויות משלוח]-FebruarySales[עלויות משלוח2]","v":{"v":2,"d":"₪ 2.00"}},{"$f":"FebruarySales[רווח/הפסד על מכירה]+FebruarySales[רווח/הפסד על משלוח]","v":{"v":162.5,"d":"₪ 162.50"}}]
[{"$f":"SalesYear","v":2012},null,"TS021","פריט 2",{"v":32,"d":"₪ 32.00"},{"v":100,"d":"₪ 100.00"},{"v":3,"d":"₪ 3.00"},null,{"v":3.2,"d":"₪ 3.20"},{"v":20,"d":"₪ 20.00"},{"v":13,"d":"₪ 13.00"},{"$f":"IFERROR(FebruarySales[מחיר מכירה]-(FebruarySales[מחיר רכישה]+FebruarySales[עמלת אינטרנט]+FebruarySales[עמלות PayPal]+FebruarySales[עמלות כרטיס אשראי]),\"\")","v":{"v":61.8,"d":"₪ 61.80"}},{"$f":"FebruarySales[עלויות משלוח]-FebruarySales[עלויות משלוח2]","v":{"v":7,"d":"₪ 7.00"}},{"$f":"FebruarySales[רווח/הפסד על מכירה]+FebruarySales[רווח/הפסד על משלוח]","v":{"v":68.8,"d":"₪ 68.80"}}]
[null,null,"TS022","פריט 3",{"v":3,"d":"₪ 3.00"},{"v":7,"d":"₪ 7.00"},{"v":2,"d":"₪ 2.00"},null,{"v":2,"d":"₪ 2.00"},{"v":0.5,"d":"₪ 0.50"},{"v":1.2,"d":"₪ 1.20"},{"$f":"IFERROR(FebruarySales[מחיר מכירה]-(FebruarySales[מחיר רכישה]+FebruarySales[עמלת אינטרנט]+FebruarySales[עמלות PayPal]+FebruarySales[עמלות כרטיס אשראי]),\"\")","v":{"v":0,"d":"₪ 0.00"}},{"$f":"FebruarySales[עלויות משלוח]-FebruarySales[עלויות משלוח2]","v":{"v":-0.7,"d":"(₪ 0.70)"}},{"$f":"FebruarySales[רווח/הפסד על מכירה]+FebruarySales[רווח/הפסד על משלוח]","v":{"v":-0.7,"d":"(₪ 0.70)"}}]
["סה\"כ רווח/הפסד",null,"TS023","פריט 4",{"v":22,"d":"₪ 22.00"},{"v":18,"d":"₪ 18.00"},{"v":3,"d":"₪ 3.00"},{"v":1.5,"d":"₪ 1.50"},null,{"v":7,"d":"₪ 7.00"},{"v":10,"d":"₪ 10.00"},{"$f":"IFERROR(FebruarySales[מחיר מכירה]-(FebruarySales[מחיר רכישה]+FebruarySales[עמלת אינטרנט]+FebruarySales[עמלות PayPal]+FebruarySales[עמלות כרטיס אשראי]),\"\")","v":{"v":-8.5,"d":"(₪ 8.50)"}},{"$f":"FebruarySales[עלויות משלוח]-FebruarySales[עלויות משלוח2]","v":{"v":-3,"d":"(₪ 3.00)"}},{"$f":"FebruarySales[רווח/הפסד על מכירה]+FebruarySales[רווח/הפסד על משלוח]","v":{"v":-11.5,"d":"(₪ 11.50)"}}]
[{"$f":"FebruarySales[[#Totals],[סה\"כ רווח/הפסד]]","v":{"v":224.60000000000002,"d":"₪224.60"}},null,"TS024","פריט 5",{"v":10,"d":"₪ 10.00"},{"v":12,"d":"₪ 12.00"},{"v":2,"d":"₪ 2.00"},{"v":1.5,"d":"₪ 1.50"},null,{"v":14,"d":"₪ 14.00"},{"v":7,"d":"₪ 7.00"},{"$f":"IFERROR(FebruarySales[מחיר מכירה]-(FebruarySales[מחיר רכישה]+FebruarySales[עמלת אינטרנט]+FebruarySales[עמלות PayPal]+FebruarySales[עמלות כרטיס אשראי]),\"\")","v":{"v":-1.5,"d":"(₪ 1.50)"}},{"$f":"FebruarySales[עלויות משלוח]-FebruarySales[עלויות משלוח2]","v":{"v":7,"d":"₪ 7.00"}},{"$f":"FebruarySales[רווח/הפסד על מכירה]+FebruarySales[רווח/הפסד על משלוח]","v":{"v":5.5,"d":"₪ 5.50"}}]
[null,null,"  סה\"כ",{"$f":"\"נמכרו: \"&SUBTOTAL(103,FebruarySales[תיאור פריט])","v":"נמכרו: 5"},{"$f":"SUBTOTAL(109,FebruarySales[מחיר רכישה])","v":{"v":77,"d":"₪ 77.00"}},{"$f":"SUBTOTAL(109,FebruarySales[מחיר מכירה])","v":{"v":312,"d":"₪ 312.00"}},{"$f":"SUBTOTAL(109,FebruarySales[עמלת אינטרנט])","v":{"v":13,"d":"₪ 13.00"}},{"$f":"SUBTOTAL(109,FebruarySales[עמלות PayPal])","v":{"v":4.5,"d":"₪ 4.50"}},{"$f":"SUBTOTAL(109,FebruarySales[עמלות כרטיס אשראי])","v":{"v":5.2,"d":"₪ 5.20"}},{"$f":"SUBTOTAL(109,FebruarySales[עלויות משלוח])","v":{"v":48.5,"d":"₪ 48.50"}},{"$f":"SUBTOTAL(109,FebruarySales[עלויות משלוח2])","v":{"v":36.2,"d":"₪ 36.20"}},{"$f":"SUBTOTAL(109,FebruarySales[רווח/הפסד על מכירה])","v":{"v":212.3,"d":"₪ 212.30"}},{"$f":"SUBTOTAL(109,FebruarySales[רווח/הפסד על משלוח])","v":{"v":12.3,"d":"₪ 12.30"}},{"$f":"SUBTOTAL(109,FebruarySales[סה\"כ רווח/הפסד])","v":{"v":224.60000000000002,"d":"₪ 224.60"}}]
["מגמת רווח/הפסד"]

{"sheet":"מרץ","index":2,"n_rows":9,"n_cols":14,"rows_kept":9,"merged":[[3,0,4,0],[6,0,7,0]]}
["מרץ"]
["מכירות באינטרנט",null,"מזהה מכירה","תיאור פריט","מחיר רכישה","מחיר מכירה","עמלת אינטרנט","עמלות PayPal","עמלות כרטיס אשראי","עלויות משלוח","עלויות משלוח2","רווח/הפסד על מכירה","רווח/הפסד על משלוח","סה\"כ רווח/הפסד"]
["שנה",{"$nulls":10},{"$f":"IFERROR(MarchSales[מחיר מכירה]-(MarchSales[מחיר רכישה]+MarchSales[עמלת אינטרנט]+MarchSales[עמלות PayPal]+MarchSales[עמלות כרטיס אשראי]),\"\")","v":{"v":0,"d":"₪ 0.00"}},{"$f":"MarchSales[עלויות משלוח]-MarchSales[עלויות משלוח2]","v":{"v":0,"d":"₪ 0.00"}},{"$f":"MarchSales[רווח/הפסד על מכירה]+MarchSales[רווח/הפסד על משלוח]","v":{"v":0,"d":"₪ 0.00"}}]
[{"$f":"SalesYear","v":2012},{"$nulls":10},{"$f":"IFERROR(MarchSales[מחיר מכירה]-(MarchSales[מחיר רכישה]+MarchSales[עמלת אינטרנט]+MarchSales[עמלות PayPal]+MarchSales[עמלות כרטיס אשראי]),\"\")","v":{"v":0,"d":"₪ 0.00"}},{"$f":"MarchSales[עלויות משלוח]-MarchSales[עלויות משלוח2]","v":{"v":0,"d":"₪ 0.00"}},{"$f":"MarchSales[רווח/הפסד על מכירה]+MarchSales[רווח/הפסד על משלוח]","v":{"v":0,"d":"₪ 0.00"}}]
[{"$nulls":11},{"$f":"IFERROR(MarchSales[מחיר מכירה]-(MarchSales[מחיר רכישה]+MarchSales[עמלת אינטרנט]+MarchSales[עמלות PayPal]+MarchSales[עמלות כרטיס אשראי]),\"\")","v":{"v":0,"d":"₪ 0.00"}},{"$f":"MarchSales[עלויות משלוח]-MarchSales[עלויות משלוח2]","v":{"v":0,"d":"₪ 0.00"}},{"$f":"MarchSales[רווח/הפסד על מכירה]+MarchSales[רווח/הפסד על משלוח]","v":{"v":0,"d":"₪ 0.00"}}]
["סה\"כ רווח/הפסד",{"$nulls":10},{"$f":"IFERROR(MarchSales[מחיר מכירה]-(MarchSales[מחיר רכישה]+MarchSales[עמלת אינטרנט]+MarchSales[עמלות PayPal]+MarchSales[עמלות כרטיס אשראי]),\"\")","v":{"v":0,"d":"₪ 0.00"}},{"$f":"MarchSales[עלויות משלוח]-MarchSales[עלויות משלוח2]","v":{"v":0,"d":"₪ 0.00"}},{"$f":"MarchSales[רווח/הפסד על מכירה]+MarchSales[רווח/הפסד על משלוח]","v":{"v":0,"d":"₪ 0.00"}}]
[{"$f":"MarchSales[[#Totals],[סה\"כ רווח/הפסד]]","v":{"v":0,"d":"₪0.00"}},{"$nulls":10},{"$f":"IFERROR(MarchSales[מחיר מכירה]-(MarchSales[מחיר רכישה]+MarchSales[עמלת אינטרנט]+MarchSales[עמלות PayPal]+MarchSales[עמלות כרטיס אשראי]),\"\")","v":{"v":0,"d":"₪ 0.00"}},{"$f":"MarchSales[עלויות משלוח]-MarchSales[עלויות משלוח2]","v":{"v":0,"d":"₪ 0.00"}},{"$f":"MarchSales[רווח/הפסד על מכירה]+MarchSales[רווח/הפסד על משלוח]","v":{"v":0,"d":"₪ 0.00"}}]
[null,null,"  סה\"כ",{"$f":"\"נמכרו: \"&SUBTOTAL(103,MarchSales[תיאור פריט])","v":"נמכרו: 0"},{"$f":"SUBTOTAL(109,MarchSales[מחיר רכישה])","v":{"v":0,"d":"₪ 0.00"}},{"$f":"SUBTOTAL(109,MarchSales[מחיר מכירה])","v":{"v":0,"d":"₪ 0.00"}},{"$f":"SUBTOTAL(109,MarchSales[עמלת אינטרנט])","v":{"v":0,"d":"₪ 0.00"}},{"$f":"SUBTOTAL(109,MarchSales[עמלות PayPal])","v":{"v":0,"d":"₪ 0.00"}},{"$f":"SUBTOTAL(109,MarchSales[עמלות כרטיס אשראי])","v":{"v":0,"d":"₪ 0.00"}},{"$f":"SUBTOTAL(109,MarchSales[עלויות משלוח])","v":{"v":0,"d":"₪ 0.00"}},{"$f":"SUBTOTAL(109,MarchSales[עלויות משלוח2])","v":{"v":0,"d":"₪ 0.00"}},{"$f":"SUBTOTAL(109,MarchSales[רווח/הפסד על מכירה])","v":{"v":0,"d":"₪ 0.00"}},{"$f":"SUBTOTAL(109,MarchSales[רווח/הפסד על משלוח])","v":{"v":0,"d":"₪ 0.00"}},{"$f":"SUBTOTAL(109,MarchSales[סה\"כ רווח/הפסד])","v":{"v":0,"d":"₪ 0.00"}}]
["מגמת רווח/הפסד"]

{"sheet":"אפריל","index":3,"n_rows":9,"n_cols":14,"rows_kept":9,"merged":[[3,0,4,0],[6,0,7,0]]}
["אפריל"]
["מכירות באינטרנט",null,"מזהה מכירה","תיאור פריט","מחיר רכישה","מחיר מכירה","עמלת אינטרנט","עמלות PayPal","עמלות כרטיס אשראי","עלויות משלוח","עלויות משלוח2","רווח/הפסד על מכירה","רווח/הפסד על משלוח","סה\"כ רווח/הפסד"]
["שנה",{"$nulls":11},{"$f":"AprilSales[עלויות משלוח]-AprilSales[עלויות משלוח2]","v":{"v":0,"d":"₪ 0.00"}},{"$f":"AprilSales[רווח/הפסד על מכירה]+AprilSales[רווח/הפסד על משלוח]","v":{"v":0,"d":"₪ 0.00"}}]
[{"$f":"SalesYear","v":2012},{"$nulls":11},{"$f":"AprilSales[עלויות משלוח]-AprilSales[עלויות משלוח2]","v":{"v":0,"d":"₪ 0.00"}},{"$f":"AprilSales[רווח/הפסד על מכירה]+AprilSales[רווח/הפסד על משלוח]","v":{"v":0,"d":"₪ 0.00"}}]
[{"$nulls":12},{"$f":"AprilSales[עלויות משלוח]-AprilSales[עלויות משלוח2]","v":{"v":0,"d":"₪ 0.00"}},{"$f":"AprilSales[רווח/הפסד על מכירה]+AprilSales[רווח/הפסד על משלוח]","v":{"v":0,"d":"₪ 0.00"}}]
["סה\"כ רווח/הפסד",{"$nulls":11},{"$f":"AprilSales[עלויות משלוח]-AprilSales[עלויות משלוח2]","v":{"v":0,"d":"₪ 0.00"}},{"$f":"AprilSales[רווח/הפסד על מכירה]+AprilSales[רווח/הפסד על משלוח]","v":{"v":0,"d":"₪ 0.00"}}]
[{"$f":"AprilSales[[#Totals],[סה\"כ רווח/הפסד]]","v":{"v":0,"d":"₪0.00"}},{"$nulls":11},{"$f":"AprilSales[עלויות משלוח]-AprilSales[עלויות משלוח2]","v":{"v":0,"d":"₪ 0.00"}},{"$f":"AprilSales[רווח/הפסד על מכירה]+AprilSales[רווח/הפסד על משלוח]","v":{"v":0,"d":"₪ 0.00"}}]
[null,null,"   סה\"כ",{"$f":"\"נמכרו: \"&SUBTOTAL(103,MarchSales[תיאור פריט])","v":"נמכרו: 0"},{"$f":"SUBTOTAL(109,MarchSales[מחיר רכישה])","v":{"v":0,"d":"₪ 0.00"}},{"$f":"SUBTOTAL(109,MarchSales[מחיר מכירה])","v":{"v":0,"d":"₪ 0.00"}},{"$f":"SUBTOTAL(109,MarchSales[עמלת אינטרנט])","v":{"v":0,"d":"₪ 0.00"}},{"$f":"SUBTOTAL(109,MarchSales[עמלות PayPal])","v":{"v":0,"d":"₪ 0.00"}},{"$f":"SUBTOTAL(109,MarchSales[עמלות כרטיס אשראי])","v":{"v":0,"d":"₪ 0.00"}},{"$f":"SUBTOTAL(109,MarchSales[עלויות משלוח])","v":{"v":0,"d":"₪ 0.00"}},{"$f":"SUBTOTAL(109,MarchSales[עלויות משלוח2])","v":{"v":0,"d":"₪ 0.00"}},{"$f":"SUBTOTAL(109,MarchSales[רווח/הפסד על מכירה])","v":{"v":0,"d":"₪ 0.00"}},{"$f":"SUBTOTAL(109,MarchSales[רווח/הפסד על משלוח])","v":{"v":0,"d":"₪ 0.00"}},{"$f":"SUBTOTAL(109,MarchSales[סה\"כ רווח/הפסד])","v":{"v":0,"d":"₪ 0.00"}}]
["מגמת רווח/הפסד"]

{"sheet":"מאי","index":4,"n_rows":9,"n_cols":14,"rows_kept":9,"merged":[[3,0,4,0],[6,0,7,0]]}
["מאי"]
["מכירות באינטרנט",null,"מזהה מכירה","תיאור פריט","מחיר רכישה","מחיר מכירה","עמלת אינטרנט","עמלות PayPal","עמלות כרטיס אשראי","עלויות משלוח","עלויות משלוח2","רווח/הפסד על מכירה","רווח/הפסד על משלוח","סה\"כ רווח/הפסד"]
["שנה",{"$nulls":11},{"$f":"MaySales[עלויות משלוח]-MaySales[עלויות משלוח2]","v":{"v":0,"d":"₪ 0.00"}},{"$f":"MaySales[רווח/הפסד על מכירה]+MaySales[רווח/הפסד על משלוח]","v":{"v":0,"d":"₪ 0.00"}}]
[{"$f":"SalesYear","v":2012},{"$nulls":11},{"$f":"MaySales[עלויות משלוח]-MaySales[עלויות משלוח2]","v":{"v":0,"d":"₪ 0.00"}},{"$f":"MaySales[רווח/הפסד על מכירה]+MaySales[רווח/הפסד על משלוח]","v":{"v":0,"d":"₪ 0.00"}}]
[{"$nulls":12},{"$f":"MaySales[עלויות משלוח]-MaySales[עלויות משלוח2]","v":{"v":0,"d":"₪ 0.00"}},{"$f":"MaySales[רווח/הפסד על מכירה]+MaySales[רווח/הפסד על משלוח]","v":{"v":0,"d":"₪ 0.00"}}]
["סה\"כ רווח/הפסד",{"$nulls":11},{"$f":"MaySales[עלויות משלוח]-MaySales[עלויות משלוח2]","v":{"v":0,"d":"₪ 0.00"}},{"$f":"MaySales[רווח/הפסד על מכירה]+MaySales[רווח/הפסד על משלוח]","v":{"v":0,"d":"₪ 0.00"}}]
[{"$f":"MaySales[[#Totals],[סה\"כ רווח/הפסד]]","v":{"v":0,"d":"₪0.00"}},{"$nulls":11},{"$f":"MaySales[עלויות משלוח]-MaySales[עלויות משלוח2]","v":{"v":0,"d":"₪ 0.00"}},{"$f":"MaySales[רווח/הפסד על מכירה]+MaySales[רווח/הפסד על משלוח]","v":{"v":0,"d":"₪ 0.00"}}]
[null,null,"    סה\"כ",{"$f":"\"נמכרו: \"&SUBTOTAL(103,MaySales[תיאור פריט])","v":"נמכרו: 0"},{"$f":"SUBTOTAL(109,MaySales[מחיר רכישה])","v":{"v":0,"d":"₪ 0.00"}},{"$f":"SUBTOTAL(109,MaySales[מחיר מכירה])","v":{"v":0,"d":"₪ 0.00"}},{"$f":"SUBTOTAL(109,MaySales[עמלת אינטרנט])","v":{"v":0,"d":"₪ 0.00"}},{"$f":"SUBTOTAL(109,MaySales[עמלות PayPal])","v":{"v":0,"d":"₪ 0.00"}},{"$f":"SUBTOTAL(109,MaySales[עמלות כרטיס אשראי])","v":{"v":0,"d":"₪ 0.00"}},{"$f":"SUBTOTAL(109,MaySales[עלויות משלוח])","v":{"v":0,"d":"₪ 0.00"}},{"$f":"SUBTOTAL(109,MaySales[עלויות משלוח2])","v":{"v":0,"d":"₪ 0.00"}},{"$f":"SUBTOTAL(109,MaySales[רווח/הפסד על מכירה])","v":{"v":0,"d":"₪ 0.00"}},{"$f":"SUBTOTAL(109,MaySales[רווח/הפסד על משלוח])","v":{"v":0,"d":"₪ 0.00"}},{"$f":"SUBTOTAL(109,MaySales[סה\"כ רווח/הפסד])","v":{"v":0,"d":"₪ 0.00"}}]
["מגמת רווח/הפסד"]

{"sheet":"יוני","index":5,"n_rows":9,"n_cols":14,"rows_kept":9,"merged":[[3,0,4,0],[6,0,7,0]]}
["יוני"]
["מכירות באינטרנט",null,"מזהה מכירה","תיאור פריט","מחיר רכישה","מחיר מכירה","עמלת אינטרנט","עמלות PayPal","עמלות כרטיס אשראי","עלויות משלוח","עלויות משלוח2","רווח/הפסד על מכירה","רווח/הפסד על משלוח","סה\"כ רווח/הפסד"]
["שנה",{"$nulls":11},{"$f":"JuneSales[עלויות משלוח]-JuneSales[עלויות משלוח2]","v":{"v":0,"d":"₪ 0.00"}},{"$f":"JuneSales[רווח/הפסד על מכירה]+JuneSales[רווח/הפסד על משלוח]","v":{"v":0,"d":"₪ 0.00"}}]
[{"$f":"SalesYear","v":2012},{"$nulls":11},{"$f":"JuneSales[עלויות משלוח]-JuneSales[עלויות משלוח2]","v":{"v":0,"d":"₪ 0.00"}},{"$f":"JuneSales[רווח/הפסד על מכירה]+JuneSales[רווח/הפסד על משלוח]","v":{"v":0,"d":"₪ 0.00"}}]
[{"$nulls":12},{"$f":"JuneSales[עלויות משלוח]-JuneSales[עלויות משלוח2]","v":{"v":0,"d":"₪ 0.00"}},{"$f":"JuneSales[רווח/הפסד על מכירה]+JuneSales[רווח/הפסד על משלוח]","v":{"v":0,"d":"₪ 0.00"}}]
["סה\"כ רווח/הפסד",{"$nulls":11},{"$f":"JuneSales[עלויות משלוח]-JuneSales[עלויות משלוח2]","v":{"v":0,"d":"₪ 0.00"}},{"$f":"JuneSales[רווח/הפסד על מכירה]+JuneSales[רווח/הפסד על משלוח]","v":{"v":0,"d":"₪ 0.00"}}]
[{"$f":"JuneSales[[#Totals],[סה\"כ רווח/הפסד]]","v":{"v":0,"d":"₪0.00"}},{"$nulls":11},{"$f":"JuneSales[עלויות משלוח]-JuneSales[עלויות משלוח2]","v":{"v":0,"d":"₪ 0.00"}},{"$f":"JuneSales[רווח/הפסד על מכירה]+JuneSales[רווח/הפסד על משלוח]","v":{"v":0,"d":"₪ 0.00"}}]
[null,null,"     סה\"כ",{"$f":"\"נמכרו: \"&SUBTOTAL(103,JuneSales[תיאור פריט])","v":"נמכרו: 0"},{"$f":"SUBTOTAL(109,JuneSales[מחיר רכישה])","v":{"v":0,"d":"₪ 0.00"}},{"$f":"SUBTOTAL(109,JuneSales[מחיר מכירה])","v":{"v":0,"d":"₪ 0.00"}},{"$f":"SUBTOTAL(109,JuneSales[עמלת אינטרנט])","v":{"v":0,"d":"₪ 0.00"}},{"$f":"SUBTOTAL(109,JuneSales[עמלות PayPal])","v":{"v":0,"d":"₪ 0.00"}},{"$f":"SUBTOTAL(109,JuneSales[עמלות כרטיס אשראי])","v":{"v":0,"d":"₪ 0.00"}},{"$f":"SUBTOTAL(109,JuneSales[עלויות משלוח])","v":{"v":0,"d":"₪ 0.00"}},{"$f":"SUBTOTAL(109,JuneSales[עלויות משלוח2])","v":{"v":0,"d":"₪ 0.00"}},{"$f":"SUBTOTAL(109,JuneSales[רווח/הפסד על מכירה])","v":{"v":0,"d":"₪ 0.00"}},{"$f":"SUBTOTAL(109,JuneSales[רווח/הפסד על משלוח])","v":{"v":0,"d":"₪ 0.00"}},{"$f":"SUBTOTAL(109,JuneSales[סה\"כ רווח/הפסד])","v":{"v":0,"d":"₪ 0.00"}}]
["מגמת רווח/הפסד"]

{"sheet":"יולי","index":6,"n_rows":9,"n_cols":14,"rows_kept":9,"merged":[[3,0,4,0],[6,0,7,0]]}
["יולי"]
["מכירות באינטרנט",null,"מזהה מכירה","תיאור פריט","מחיר רכישה","מחיר מכירה","עמלת אינטרנט","עמלות PayPal","עמלות כרטיס אשראי","עלויות משלוח","עלויות משלוח2","רווח/הפסד על מכירה","רווח/הפסד על משלוח","סה\"כ רווח/הפסד"]
["שנה",{"$nulls":11},{"$f":"JulySales[עלויות משלוח]-JulySales[עלויות משלוח2]","v":{"v":0,"d":"₪ 0.00"}},{"$f":"JulySales[רווח/הפסד על מכירה]+JulySales[רווח/הפסד על משלוח]","v":{"v":0,"d":"₪ 0.00"}}]
[{"$f":"SalesYear","v":2012},{"$nulls":11},{"$f":"JulySales[עלויות משלוח]-JulySales[עלויות משלוח2]","v":{"v":0,"d":"₪ 0.00"}},{"$f":"JulySales[רווח/הפסד על מכירה]+JulySales[רווח/הפסד על משלוח]","v":{"v":0,"d":"₪ 0.00"}}]
[{"$nulls":12},{"$f":"JulySales[עלויות משלוח]-JulySales[עלויות משלוח2]","v":{"v":0,"d":"₪ 0.00"}},{"$f":"JulySales[רווח/הפסד על מכירה]+JulySales[רווח/הפסד על משלוח]","v":{"v":0,"d":"₪ 0.00"}}]
["סה\"כ רווח/הפסד",{"$nulls":11},{"$f":"JulySales[עלויות משלוח]-JulySales[עלויות משלוח2]","v":{"v":0,"d":"₪ 0.00"}},{"$f":"JulySales[רווח/הפסד על מכירה]+JulySales[רווח/הפסד על משלוח]","v":{"v":0,"d":"₪ 0.00"}}]
[{"$f":"JulySales[[#Totals],[סה\"כ רווח/הפסד]]","v":{"v":0,"d":"₪0.00"}},{"$nulls":11},{"$f":"JulySales[עלויות משלוח]-JulySales[עלויות משלוח2]","v":{"v":0,"d":"₪ 0.00"}},{"$f":"JulySales[רווח/הפסד על מכירה]+JulySales[רווח/הפסד על משלוח]","v":{"v":0,"d":"₪ 0.00"}}]
[null,null,"      סה\"כ",{"$f":"\"נמכרו: \"&SUBTOTAL(103,JulySales[תיאור פריט])","v":"נמכרו: 0"},{"$f":"SUBTOTAL(109,JulySales[מחיר רכישה])","v":{"v":0,"d":"₪ 0.00"}},{"$f":"SUBTOTAL(109,JulySales[מחיר מכירה])","v":{"v":0,"d":"₪ 0.00"}},{"$f":"SUBTOTAL(109,JulySales[עמלת אינטרנט])","v":{"v":0,"d":"₪ 0.00"}},{"$f":"SUBTOTAL(109,JulySales[עמלות PayPal])","v":{"v":0,"d":"₪ 0.00"}},{"$f":"SUBTOTAL(109,JulySales[עמלות כרטיס אשראי])","v":{"v":0,"d":"₪ 0.00"}},{"$f":"SUBTOTAL(109,JulySales[עלויות משלוח])","v":{"v":0,"d":"₪ 0.00"}},{"$f":"SUBTOTAL(109,JulySales[עלויות משלוח2])","v":{"v":0,"d":"₪ 0.00"}},{"$f":"SUBTOTAL(109,JulySales[רווח/הפסד על מכירה])","v":{"v":0,"d":"₪ 0.00"}},{"$f":"SUBTOTAL(109,JulySales[רווח/הפסד על משלוח])","v":{"v":0,"d":"₪ 0.00"}},{"$f":"SUBTOTAL(109,JulySales[סה\"כ רווח/הפסד])","v":{"v":0,"d":"₪ 0.00"}}]
["מגמת רווח/הפסד"]

{"sheet":"אוגוסט","index":7,"n_rows":9,"n_cols":14,"rows_kept":9,"merged":[[3,0,4,0],[6,0,7,0]]}
["אוגוסט"]
["מכירות באינטרנט",null,"מזהה מכירה","תיאור פריט","מחיר רכישה","מחיר מכירה","עמלת אינטרנט","עמלות PayPal","עמלות כרטיס אשראי","עלויות משלוח","עלויות משלוח2","רווח/הפסד על מכירה","רווח/הפסד על משלוח","סה\"כ רווח/הפסד"]
["שנה",{"$nulls":11},{"$f":"AugustSales[עלויות משלוח]-AugustSales[עלויות משלוח2]","v":{"v":0,"d":"₪ 0.00"}},{"$f":"AugustSales[רווח/הפסד על מכירה]+AugustSales[רווח/הפסד על משלוח]","v":{"v":0,"d":"₪ 0.00"}}]
[{"$f":"SalesYear","v":2012},{"$nulls":11},{"$f":"AugustSales[עלויות משלוח]-AugustSales[עלויות משלוח2]","v":{"v":0,"d":"₪ 0.00"}},{"$f":"AugustSales[רווח/הפסד על מכירה]+AugustSales[רווח/הפסד על משלוח]","v":{"v":0,"d":"₪ 0.00"}}]
[{"$nulls":12},{"$f":"AugustSales[עלויות משלוח]-AugustSales[עלויות משלוח2]","v":{"v":0,"d":"₪ 0.00"}},{"$f":"AugustSales[רווח/הפסד על מכירה]+AugustSales[רווח/הפסד על משלוח]","v":{"v":0,"d":"₪ 0.00"}}]
["סה\"כ רווח/הפסד",{"$nulls":11},{"$f":"AugustSales[עלויות משלוח]-AugustSales[עלויות משלוח2]","v":{"v":0,"d":"₪ 0.00"}},{"$f":"AugustSales[רווח/הפסד על מכירה]+AugustSales[רווח/הפסד על משלוח]","v":{"v":0,"d":"₪ 0.00"}}]
[{"$f":"AugustSales[[#Totals],[סה\"כ רווח/הפסד]]","v":{"v":0,"d":"₪0.00"}},{"$nulls":11},{"$f":"AugustSales[עלויות משלוח]-AugustSales[עלויות משלוח2]","v":{"v":0,"d":"₪ 0.00"}},{"$f":"AugustSales[רווח/הפסד על מכירה]+AugustSales[רווח/הפסד על משלוח]","v":{"v":0,"d":"₪ 0.00"}}]
[null,null,"       סה\"כ",{"$f":"\"נמכרו: \"&SUBTOTAL(103,AugustSales[תיאור פריט])","v":"נמכרו: 0"},{"$f":"SUBTOTAL(109,AugustSales[מחיר רכישה])","v":{"v":0,"d":"₪ 0.00"}},{"$f":"SUBTOTAL(109,AugustSales[מחיר מכירה])","v":{"v":0,"d":"₪ 0.00"}},{"$f":"SUBTOTAL(109,AugustSales[עמלת אינטרנט])","v":{"v":0,"d":"₪ 0.00"}},{"$f":"SUBTOTAL(109,AugustSales[עמלות PayPal])","v":{"v":0,"d":"₪ 0.00"}},{"$f":"SUBTOTAL(109,AugustSales[עמלות כרטיס אשראי])","v":{"v":0,"d":"₪ 0.00"}},{"$f":"SUBTOTAL(109,AugustSales[עלויות משלוח])","v":{"v":0,"d":"₪ 0.00"}},{"$f":"SUBTOTAL(109,AugustSales[עלויות משלוח2])","v":{"v":0,"d":"₪ 0.00"}},{"$f":"SUBTOTAL(109,AugustSales[רווח/הפסד על מכירה])","v":{"v":0,"d":"₪ 0.00"}},{"$f":"SUBTOTAL(109,AugustSales[רווח/הפסד על משלוח])","v":{"v":0,"d":"₪ 0.00"}},{"$f":"SUBTOTAL(109,AugustSales[סה\"כ רווח/הפסד])","v":{"v":0,"d":"₪ 0.00"}}]
["מגמת רווח/הפסד"]

{"sheet":"ספטמבר","index":8,"n_rows":9,"n_cols":14,"rows_kept":9,"merged":[[3,0,4,0],[6,0,7,0]]}
["ספטמבר"]
["מכירות באינטרנט",null,"מזהה מכירה","תיאור פריט","מחיר רכישה","מחיר מכירה","עמלת אינטרנט","עמלות PayPal","עמלות כרטיס אשראי","עלויות משלוח","עלויות משלוח2","רווח/הפסד על מכירה","רווח/הפסד על משלוח","סה\"כ רווח/הפסד"]
["שנה",{"$nulls":11},{"$f":"SeptemberSales[עלויות משלוח]-SeptemberSales[עלויות משלוח2]","v":{"v":0,"d":"₪ 0.00"}},{"$f":"SeptemberSales[רווח/הפסד על מכירה]+SeptemberSales[רווח/הפסד על משלוח]","v":{"v":0,"d":"₪ 0.00"}}]
[{"$f":"SalesYear","v":2012},{"$nulls":11},{"$f":"SeptemberSales[עלויות משלוח]-SeptemberSales[עלויות משלוח2]","v":{"v":0,"d":"₪ 0.00"}},{"$f":"SeptemberSales[רווח/הפסד על מכירה]+SeptemberSales[רווח/הפסד על משלוח]","v":{"v":0,"d":"₪ 0.00"}}]
[{"$nulls":12},{"$f":"SeptemberSales[עלויות משלוח]-SeptemberSales[עלויות משלוח2]","v":{"v":0,"d":"₪ 0.00"}},{"$f":"SeptemberSales[רווח/הפסד על מכירה]+SeptemberSales[רווח/הפסד על משלוח]","v":{"v":0,"d":"₪ 0.00"}}]
["סה\"כ רווח/הפסד",{"$nulls":11},{"$f":"SeptemberSales[עלויות משלוח]-SeptemberSales[עלויות משלוח2]","v":{"v":0,"d":"₪ 0.00"}},{"$f":"SeptemberSales[רווח/הפסד על מכירה]+SeptemberSales[רווח/הפסד על משלוח]","v":{"v":0,"d":"₪ 0.00"}}]
[{"$f":"SeptemberSales[[#Totals],[סה\"כ רווח/הפסד]]","v":{"v":0,"d":"₪0.00"}},{"$nulls":11},{"$f":"SeptemberSales[עלויות משלוח]-SeptemberSales[עלויות משלוח2]","v":{"v":0,"d":"₪ 0.00"}},{"$f":"SeptemberSales[רווח/הפסד על מכירה]+SeptemberSales[רווח/הפסד על משלוח]","v":{"v":0,"d":"₪ 0.00"}}]
[null,null,"        סה\"כ",{"$f":"\"נמכרו: \"&SUBTOTAL(103,SeptemberSales[תיאור פריט])","v":"נמכרו: 0"},{"$f":"SUBTOTAL(109,SeptemberSales[מחיר רכישה])","v":{"v":0,"d":"₪ 0.00"}},{"$f":"SUBTOTAL(109,SeptemberSales[מחיר מכירה])","v":{"v":0,"d":"₪ 0.00"}},{"$f":"SUBTOTAL(109,SeptemberSales[עמלת אינטרנט])","v":{"v":0,"d":"₪ 0.00"}},{"$f":"SUBTOTAL(109,SeptemberSales[עמלות PayPal])","v":{"v":0,"d":"₪ 0.00"}},{"$f":"SUBTOTAL(109,SeptemberSales[עמלות כרטיס אשראי])","v":{"v":0,"d":"₪ 0.00"}},{"$f":"SUBTOTAL(109,SeptemberSales[עלויות משלוח])","v":{"v":0,"d":"₪ 0.00"}},{"$f":"SUBTOTAL(109,SeptemberSales[עלויות משלוח2])","v":{"v":0,"d":"₪ 0.00"}},{"$f":"SUBTOTAL(109,SeptemberSales[רווח/הפסד על מכירה])","v":{"v":0,"d":"₪ 0.00"}},{"$f":"SUBTOTAL(109,SeptemberSales[רווח/הפסד על משלוח])","v":{"v":0,"d":"₪ 0.00"}},{"$f":"SUBTOTAL(109,SeptemberSales[סה\"כ רווח/הפסד])","v":{"v":0,"d":"₪ 0.00"}}]
["מגמת רווח/הפסד"]

{"sheet":"אוקטובר","index":9,"n_rows":9,"n_cols":14,"rows_kept":9,"merged":[[3,0,4,0],[6,0,7,0]]}
["אוקטובר"]
["מכירות באינטרנט",null,"מזהה מכירה","תיאור פריט","מחיר רכישה","מחיר מכירה","עמלת אינטרנט","עמלות PayPal","עמלות כרטיס אשראי","עלויות משלוח","עלויות משלוח2","רווח/הפסד על מכירה","רווח/הפסד על משלוח","סה\"כ רווח/הפסד"]
["שנה",{"$nulls":11},{"$f":"OctoberSales[עלויות משלוח]-OctoberSales[עלויות משלוח2]","v":{"v":0,"d":"₪ 0.00"}},{"$f":"OctoberSales[רווח/הפסד על מכירה]+OctoberSales[רווח/הפסד על משלוח]","v":{"v":0,"d":"₪ 0.00"}}]
[{"$f":"SalesYear","v":2012},{"$nulls":11},{"$f":"OctoberSales[עלויות משלוח]-OctoberSales[עלויות משלוח2]","v":{"v":0,"d":"₪ 0.00"}},{"$f":"OctoberSales[רווח/הפסד על מכירה]+OctoberSales[רווח/הפסד על משלוח]","v":{"v":0,"d":"₪ 0.00"}}]
[{"$nulls":12},{"$f":"OctoberSales[עלויות משלוח]-OctoberSales[עלויות משלוח2]","v":{"v":0,"d":"₪ 0.00"}},{"$f":"OctoberSales[רווח/הפסד על מכירה]+OctoberSales[רווח/הפסד על משלוח]","v":{"v":0,"d":"₪ 0.00"}}]
["סה\"כ רווח/הפסד",{"$nulls":11},{"$f":"OctoberSales[עלויות משלוח]-OctoberSales[עלויות משלוח2]","v":{"v":0,"d":"₪ 0.00"}},{"$f":"OctoberSales[רווח/הפסד על מכירה]+OctoberSales[רווח/הפסד על משלוח]","v":{"v":0,"d":"₪ 0.00"}}]
[{"$f":"OctoberSales[[#Totals],[סה\"כ רווח/הפסד]]","v":{"v":0,"d":"₪0.00"}},{"$nulls":11},{"$f":"OctoberSales[עלויות משלוח]-OctoberSales[עלויות משלוח2]","v":{"v":0,"d":"₪ 0.00"}},{"$f":"OctoberSales[רווח/הפסד על מכירה]+OctoberSales[רווח/הפסד על משלוח]","v":{"v":0,"d":"₪ 0.00"}}]
[null,null,"         סה\"כ",{"$f":"\"נמכרו:  \"&SUBTOTAL(103,OctoberSales[תיאור פריט])","v":"נמכרו:  0"},{"$f":"SUBTOTAL(109,OctoberSales[מחיר רכישה])","v":{"v":0,"d":"₪ 0.00"}},{"$f":"SUBTOTAL(109,OctoberSales[מחיר מכירה])","v":{"v":0,"d":"₪ 0.00"}},{"$f":"SUBTOTAL(109,OctoberSales[עמלת אינטרנט])","v":{"v":0,"d":"₪ 0.00"}},{"$f":"SUBTOTAL(109,OctoberSales[עמלות PayPal])","v":{"v":0,"d":"₪ 0.00"}},{"$f":"SUBTOTAL(109,OctoberSales[עמלות כרטיס אשראי])","v":{"v":0,"d":"₪ 0.00"}},{"$f":"SUBTOTAL(109,OctoberSales[עלויות משלוח])","v":{"v":0,"d":"₪ 0.00"}},{"$f":"SUBTOTAL(109,OctoberSales[עלויות משלוח2])","v":{"v":0,"d":"₪ 0.00"}},{"$f":"SUBTOTAL(109,OctoberSales[רווח/הפסד על מכירה])","v":{"v":0,"d":"₪ 0.00"}},{"$f":"SUBTOTAL(109,OctoberSales[רווח/הפסד על משלוח])","v":{"v":0,"d":"₪ 0.00"}},{"$f":"SUBTOTAL(109,OctoberSales[סה\"כ רווח/הפסד])","v":{"v":0,"d":"₪ 0.00"}}]
["מגמת רווח/הפסד"]

{"sheet":"נובמבר","index":10,"n_rows":9,"n_cols":14,"rows_kept":9,"merged":[[3,0,4,0],[6,0,7,0]]}
["נובמבר"]
["מכירות באינטרנט",null,"מזהה מכירה","תיאור פריט","מחיר רכישה","מחיר מכירה","עמלת אינטרנט","עמלות PayPal","עמלות כרטיס אשראי","עלויות משלוח","עלויות משלוח2","רווח/הפסד על מכירה","רווח/הפסד על משלוח","סה\"כ רווח/הפסד"]
["שנה",{"$nulls":11},{"$f":"NovemberSales[עלויות משלוח]-NovemberSales[עלויות משלוח2]","v":{"v":0,"d":"₪ 0.00"}},{"$f":"NovemberSales[רווח/הפסד על מכירה]+NovemberSales[רווח/הפסד על משלוח]","v":{"v":0,"d":"₪ 0.00"}}]
[{"$f":"SalesYear","v":2012},{"$nulls":11},{"$f":"NovemberSales[עלויות משלוח]-NovemberSales[עלויות משלוח2]","v":{"v":0,"d":"₪ 0.00"}},{"$f":"NovemberSales[רווח/הפסד על מכירה]+NovemberSales[רווח/הפסד על משלוח]","v":{"v":0,"d":"₪ 0.00"}}]
[{"$nulls":12},{"$f":"NovemberSales[עלויות משלוח]-NovemberSales[עלויות משלוח2]","v":{"v":0,"d":"₪ 0.00"}},{"$f":"NovemberSales[רווח/הפסד על מכירה]+NovemberSales[רווח/הפסד על משלוח]","v":{"v":0,"d":"₪ 0.00"}}]
["סה\"כ רווח/הפסד",{"$nulls":11},{"$f":"NovemberSales[עלויות משלוח]-NovemberSales[עלויות משלוח2]","v":{"v":0,"d":"₪ 0.00"}},{"$f":"NovemberSales[רווח/הפסד על מכירה]+NovemberSales[רווח/הפסד על משלוח]","v":{"v":0,"d":"₪ 0.00"}}]
[{"$f":"NovemberSales[[#Totals],[סה\"כ רווח/הפסד]]","v":{"v":0,"d":"₪0.00"}},{"$nulls":11},{"$f":"NovemberSales[עלויות משלוח]-NovemberSales[עלויות משלוח2]","v":{"v":0,"d":"₪ 0.00"}},{"$f":"NovemberSales[רווח/הפסד על מכירה]+NovemberSales[רווח/הפסד על משלוח]","v":{"v":0,"d":"₪ 0.00"}}]
[null,null,"          סה\"כ",{"$f":"\"נמכרו:  \"&SUBTOTAL(103,NovemberSales[תיאור פריט])","v":"נמכרו:  0"},{"$f":"SUBTOTAL(109,NovemberSales[מחיר רכישה])","v":{"v":0,"d":"₪ 0.00"}},{"$f":"SUBTOTAL(109,NovemberSales[מחיר מכירה])","v":{"v":0,"d":"₪ 0.00"}},{"$f":"SUBTOTAL(109,NovemberSales[עמלת אינטרנט])","v":{"v":0,"d":"₪ 0.00"}},{"$f":"SUBTOTAL(109,NovemberSales[עמלות PayPal])","v":{"v":0,"d":"₪ 0.00"}},{"$f":"SUBTOTAL(109,NovemberSales[עמלות כרטיס אשראי])","v":{"v":0,"d":"₪ 0.00"}},{"$f":"SUBTOTAL(109,NovemberSales[עלויות משלוח])","v":{"v":0,"d":"₪ 0.00"}},{"$f":"SUBTOTAL(109,NovemberSales[עלויות משלוח2])","v":{"v":0,"d":"₪ 0.00"}},{"$f":"SUBTOTAL(109,NovemberSales[רווח/הפסד על מכירה])","v":{"v":0,"d":"₪ 0.00"}},{"$f":"SUBTOTAL(109,NovemberSales[רווח/הפסד על משלוח])","v":{"v":0,"d":"₪ 0.00"}},{"$f":"SUBTOTAL(109,NovemberSales[סה\"כ רווח/הפסד])","v":{"v":0,"d":"₪ 0.00"}}]
["מגמת רווח/הפסד"]

{"sheet":"סיכום מתחילת השנה עד היום","index":11,"n_rows":16,"n_cols":11,"rows_kept":16,"merged":[[3,0,4,0],[6,0,7,0]]}
["מתחילת השנה עד היום"]
["סיכום",null,"רווח/הפסד",{"$nulls":4},"רווח/הפסד מתחילת השנה עד היום"]
["שנה",{"$nulls":6},"חודש","רווח/הפסד על מכירות","רווח/הפסד על משלוח","סה\"כ רווח/הפסד"]
[{"$f":"SalesYear","v":2012},{"$nulls":6},"ינואר",{"$f":"JanuarySales[[#Totals],[רווח/הפסד על מכירה]]","v":{"v":79.5,"d":"₪ 79.50"}},{"$f":"JanuarySales[[#Totals],[רווח/הפסד על משלוח]]","v":{"v":9.5,"d":"₪ 9.50"}},{"$f":"IF(AND(YTDSummary[[#This Row],[רווח/הפסד על מכירות]]<>\"\",YTDSummary[[#This Row],[רווח/הפסד על משלוח]]<>\"\"),YTDSummary[[#This Row],[רווח/הפסד על מכירות]]+YTDSummary[[#This Row],[רווח/הפסד על משלוח]],\"\")","v":{"v":89,"d":"₪ 89.00"}}]
[{"$nulls":7},"פברואר",{"$f":"FebruarySales[[#Totals],[רווח/הפסד על מכירה]]","v":{"v":212.3,"d":"₪ 212.30"}},{"$f":"FebruarySales[[#Totals],[רווח/הפסד על משלוח]]","v":{"v":12.3,"d":"₪ 12.30"}},{"$f":"IF(AND(YTDSummary[[#This Row],[רווח/הפסד על מכירות]]<>\"\",YTDSummary[[#This Row],[רווח/הפסד על משלוח]]<>\"\"),YTDSummary[[#This Row],[רווח/הפסד על מכירות]]+YTDSummary[[#This Row],[רווח/הפסד על משלוח]],\"\")","v":{"v":224.60000000000002,"d":"₪ 224.60"}}]
["מגמת מכירות חודשית:",{"$nulls":6},"מרץ",{"$f":"MarchSales[[#Totals],[רווח/הפסד על מכירה]]","v":{"v":0,"d":"₪ 0.00"}},{"$f":"MarchSales[[#Totals],[רווח/הפסד על משלוח]]","v":{"v":0,"d":"₪ 0.00"}},{"$f":"IF(AND(YTDSummary[[#This Row],[רווח/הפסד על מכירות]]<>\"\",YTDSummary[[#This Row],[רווח/הפסד על משלוח]]<>\"\"),YTDSummary[[#This Row],[רווח/הפסד על מכירות]]+YTDSummary[[#This Row],[רווח/הפסד על משלוח]],\"\")","v":{"v":0,"d":"₪ 0.00"}}]
[{"$nulls":7},"אפריל",{"$f":"AprilSales[[#Totals],[רווח/הפסד על מכירה]]","v":{"v":0,"d":"₪ 0.00"}},{"$f":"AprilSales[[#Totals],[רווח/הפסד על משלוח]]","v":{"v":0,"d":"₪ 0.00"}},{"$f":"IF(AND(YTDSummary[[#This Row],[רווח/הפסד על מכירות]]<>\"\",YTDSummary[[#This Row],[רווח/הפסד על משלוח]]<>\"\"),YTDSummary[[#This Row],[רווח/הפסד על מכירות]]+YTDSummary[[#This Row],[רווח/הפסד על משלוח]],\"\")","v":{"v":0,"d":"₪ 0.00"}}]
[{"$nulls":7},"מאי",{"$f":"MaySales[[#Totals],[רווח/הפסד על מכירה]]","v":{"v":0,"d":"₪ 0.00"}},{"$f":"MaySales[[#Totals],[רווח/הפסד על משלוח]]","v":{"v":0,"d":"₪ 0.00"}},{"$f":"IF(AND(YTDSummary[[#This Row],[רווח/הפסד על מכירות]]<>\"\",YTDSummary[[#This Row],[רווח/הפסד על משלוח]]<>\"\"),YTDSummary[[#This Row],[רווח/הפסד על מכירות]]+YTDSummary[[#This Row],[רווח/הפסד על משלוח]],\"\")","v":{"v":0,"d":"₪ 0.00"}}]
[{"$nulls":7},"יוני",{"$f":"JuneSales[[#Totals],[רווח/הפסד על מכירה]]","v":{"v":0,"d":"₪ 0.00"}},{"$f":"JuneSales[[#Totals],[רווח/הפסד על משלוח]]","v":{"v":0,"d":"₪ 0.00"}},{"$f":"IF(AND(YTDSummary[[#This Row],[רווח/הפסד על מכירות]]<>\"\",YTDSummary[[#This Row],[רווח/הפסד על משלוח]]<>\"\"),YTDSummary[[#This Row],[רווח/הפסד על מכירות]]+YTDSummary[[#This Row],[רווח/הפסד על משלוח]],\"\")","v":{"v":0,"d":"₪ 0.00"}}]
[{"$nulls":7},"יולי",{"$f":"JulySales[[#Totals],[רווח/הפסד על מכירה]]","v":{"v":0,"d":"₪ 0.00"}},{"$f":"JulySales[[#Totals],[רווח/הפסד על משלוח]]","v":{"v":0,"d":"₪ 0.00"}},{"$f":"IF(AND(YTDSummary[[#This Row],[רווח/הפסד על מכירות]]<>\"\",YTDSummary[[#This Row],[רווח/הפסד על משלוח]]<>\"\"),YTDSummary[[#This Row],[רווח/הפסד על מכירות]]+YTDSummary[[#This Row],[רווח/הפסד על משלוח]],\"\")","v":{"v":0,"d":"₪ 0.00"}}]
[{"$nulls":7},"אוגוסט",{"$f":"AugustSales[[#Totals],[רווח/הפסד על מכירה]]","v":{"v":0,"d":"₪ 0.00"}},{"$f":"AugustSales[[#Totals],[רווח/הפסד על משלוח]]","v":{"v":0,"d":"₪ 0.00"}},{"$f":"IF(AND(YTDSummary[[#This Row],[רווח/הפסד על מכירות]]<>\"\",YTDSummary[[#This Row],[רווח/הפסד על משלוח]]<>\"\"),YTDSummary[[#This Row],[רווח/הפסד על מכירות]]+YTDSummary[[#This Row],[רווח/הפסד על משלוח]],\"\")","v":{"v":0,"d":"₪ 0.00"}}]
[{"$nulls":7},"ספטמבר",{"$f":"SeptemberSales[[#Totals],[רווח/הפסד על מכירה]]","v":{"v":0,"d":"₪ 0.00"}},{"$f":"SeptemberSales[[#Totals],[רווח/הפסד על משלוח]]","v":{"v":0,"d":"₪ 0.00"}},{"$f":"IF(AND(YTDSummary[[#This Row],[רווח/הפסד על מכירות]]<>\"\",YTDSummary[[#This Row],[רווח/הפסד על משלוח]]<>\"\"),YTDSummary[[#This Row],[רווח/הפסד על מכירות]]+YTDSummary[[#This Row],[רווח/הפסד על משלוח]],\"\")","v":{"v":0,"d":"₪ 0.00"}}]
[{"$nulls":7},"אוקטובר",{"$f":"OctoberSales[[#Totals],[רווח/הפסד על מכירה]]","v":{"v":0,"d":"₪ 0.00"}},{"$f":"OctoberSales[[#Totals],[רווח/הפסד על משלוח]]","v":{"v":0,"d":"₪ 0.00"}},{"$f":"IF(AND(YTDSummary[[#This Row],[רווח/הפסד על מכירות]]<>\"\",YTDSummary[[#This Row],[רווח/הפסד על משלוח]]<>\"\"),YTDSummary[[#This Row],[רווח/הפסד על מכירות]]+YTDSummary[[#This Row],[רווח/הפסד על משלוח]],\"\")","v":{"v":0,"d":"₪ 0.00"}}]
[{"$nulls":7},"נובמבר",{"$f":"NovemberSales[[#Totals],[רווח/הפסד על מכירה]]","v":{"v":0,"d":"₪ 0.00"}},{"$f":"NovemberSales[[#Totals],[רווח/הפסד על משלוח]]","v":{"v":0,"d":"₪ 0.00"}},{"$f":"IF(AND(YTDSummary[[#This Row],[רווח/הפסד על מכירות]]<>\"\",YTDSummary[[#This Row],[רווח/הפסד על משלוח]]<>\"\"),YTDSummary[[#This Row],[רווח/הפסד על מכירות]]+YTDSummary[[#This Row],[רווח/הפסד על משלוח]],\"\")","v":{"v":0,"d":"₪ 0.00"}}]
[{"$nulls":7},"דצמבר",{"$f":"DecemberSales[[#Totals],[רווח/הפסד על מכירה]]","v":{"v":0,"d":"₪ 0.00"}},{"$f":"DecemberSales[[#Totals],[רווח/הפסד על משלוח]]","v":{"v":0,"d":"₪ 0.00"}},{"$f":"IF(AND(YTDSummary[[#This Row],[רווח/הפסד על מכירות]]<>\"\",YTDSummary[[#This Row],[רווח/הפסד על משלוח]]<>\"\"),YTDSummary[[#This Row],[רווח/הפסד על מכירות]]+YTDSummary[[#This Row],[רווח/הפסד על משלוח]],\"\")","v":{"v":0,"d":"₪ 0.00"}}]
[{"$nulls":7},"סכומים",{"$f":"SUBTOTAL(109,YTDSummary[רווח/הפסד על מכירות])","v":{"v":291.8,"d":"₪ 291.80"}},{"$f":"SUBTOTAL(109,YTDSummary[רווח/הפסד על משלוח])","v":{"v":21.8,"d":"₪ 21.80"}},{"$f":"SUBTOTAL(109,YTDSummary[סה\"כ רווח/הפסד])","v":{"v":313.6,"d":"₪ 313.60"}}]

{"sheet":"דצמבר","index":12,"n_rows":9,"n_cols":14,"rows_kept":9,"merged":[[3,0,4,0],[6,0,7,0]]}
["דצמבר"]
["מכירות באינטרנט",null,"מזהה מכירה","תיאור פריט","מחיר רכישה","מחיר מכירה","עמלת אינטרנט","עמלות PayPal","עמלות כרטיס אשראי","עלויות משלוח","עלויות משלוח2","רווח/הפסד על מכירה","רווח/הפסד על משלוח","סה\"כ רווח/הפסד"]
["שנה",{"$nulls":11},{"$f":"DecemberSales[עלויות משלוח]-DecemberSales[עלויות משלוח2]","v":{"v":0,"d":"₪ 0.00"}},{"$f":"DecemberSales[רווח/הפסד על מכירה]+DecemberSales[רווח/הפסד על משלוח]","v":{"v":0,"d":"₪ 0.00"}}]
[{"$f":"SalesYear","v":2012},{"$nulls":11},{"$f":"DecemberSales[עלויות משלוח]-DecemberSales[עלויות משלוח2]","v":{"v":0,"d":"₪ 0.00"}},{"$f":"DecemberSales[רווח/הפסד על מכירה]+DecemberSales[רווח/הפסד על משלוח]","v":{"v":0,"d":"₪ 0.00"}}]
[{"$nulls":12},{"$f":"DecemberSales[עלויות משלוח]-DecemberSales[עלויות משלוח2]","v":{"v":0,"d":"₪ 0.00"}},{"$f":"DecemberSales[רווח/הפסד על מכירה]+DecemberSales[רווח/הפסד על משלוח]","v":{"v":0,"d":"₪ 0.00"}}]
["סה\"כ רווח/הפסד",{"$nulls":11},{"$f":"DecemberSales[עלויות משלוח]-DecemberSales[עלויות משלוח2]","v":{"v":0,"d":"₪ 0.00"}},{"$f":"DecemberSales[רווח/הפסד על מכירה]+DecemberSales[רווח/הפסד על משלוח]","v":{"v":0,"d":"₪ 0.00"}}]
[{"$f":"DecemberSales[[#Totals],[סה\"כ רווח/הפסד]]","v":{"v":0,"d":"₪0.00"}},{"$nulls":11},{"$f":"DecemberSales[עלויות משלוח]-DecemberSales[עלויות משלוח2]","v":{"v":0,"d":"₪ 0.00"}},{"$f":"DecemberSales[רווח/הפסד על מכירה]+DecemberSales[רווח/הפסד על משלוח]","v":{"v":0,"d":"₪ 0.00"}}]
[null,null,"           סה\"כ",{"$f":"\"נמכרו:  \"&SUBTOTAL(103,DecemberSales[תיאור פריט])","v":"נמכרו:  0"},{"$f":"SUBTOTAL(109,DecemberSales[מחיר רכישה])","v":{"v":0,"d":"₪ 0.00"}},{"$f":"SUBTOTAL(109,DecemberSales[מחיר מכירה])","v":{"v":0,"d":"₪ 0.00"}},{"$f":"SUBTOTAL(109,DecemberSales[עמלת אינטרנט])","v":{"v":0,"d":"₪ 0.00"}},{"$f":"SUBTOTAL(109,DecemberSales[עמלות PayPal])","v":{"v":0,"d":"₪ 0.00"}},{"$f":"SUBTOTAL(109,DecemberSales[עמלות כרטיס אשראי])","v":{"v":0,"d":"₪ 0.00"}},{"$f":"SUBTOTAL(109,DecemberSales[עלויות משלוח])","v":{"v":0,"d":"₪ 0.00"}},{"$f":"SUBTOTAL(109,DecemberSales[עלויות משלוח2])","v":{"v":0,"d":"₪ 0.00"}},{"$f":"SUBTOTAL(109,DecemberSales[רווח/הפסד על מכירה])","v":{"v":0,"d":"₪ 0.00"}},{"$f":"SUBTOTAL(109,DecemberSales[רווח/הפסד על משלוח])","v":{"v":0,"d":"₪ 0.00"}},{"$f":"SUBTOTAL(109,DecemberSales[סה\"כ רווח/הפסד])","v":{"v":0,"d":"₪ 0.00"}}]
["מגמת רווח/הפסד"]